Cogmind - Beta 10.2 @@@ ROGUE MODE // 2021.01.14 @ 13:55:21 Player: Frosst Result: Destroyed by D-53 Grenadier with Mini Grenade Launcher Performance ------------- Evolutions (0) 0 Regions Visited (2) 400 Robots Destroyed (11) 55 Value Destroyed (248) 248 Prototype IDs (0) 0 Alien Tech Used (0) 0 Bonus (0) 0 TOTAL SCORE: 703 Bonus ------- None Cogmind --------- Core Integrity 0/250 Matter 198/300 Energy 51/100 System Corruption 0% Temperature Cool (0) Movement Core (150) Ox2 Location -10/Mines Parts ------- > --- POWER (1) -------- (None) > --- PROPULSION (2) --- (None) > --- UTILITY (2) ------ Small Storage Unit Terrain Scanner > --- WEAPON (2) ------- Assault Rifle > --- INVENTORY (6) ---- Small Matter Pod (0) Core Shielding Core Shielding Assault Rifle Peak State ------------ > --- POWER ------------ Ion Engine > --- PROPULSION ------- Wheel Compact Wheel > --- UTILITY ---------- Small Storage Unit Terrain Scanner > --- WEAPON ----------- Assault Rifle Light Assault Rifle > --- INVENTORY -------- Light Ion Engine Light Treads Aluminum Leg Core Shielding EM Pulse Gun Assault Rifle [Rating: 7] Favorites ----------- Power Ion Engine Engine Ion Engine Propulsion Aluminum Leg Treads Light Treads Leg Aluminum Leg Wheel Compact Wheel Utility Small Storage Unit Device Terrain Scanner Storage Small Storage Unit Weapon Assault Rifle Energy Gun EM Pulse Gun Ballistic Gun Assault Rifle Launcher Grenade Launcher Build | -11 -10 -10 ------- Run | Scr Mat Min Slots Evolved . | . . . Power . | . . . Propulsion . | . . . Utility . | . . . Weapon . | . . . Parts Attached 19 | 8 8 3 Power 4 | 3 1 . Engine 4 | 3 1 . Core . | . . . Reactor . | . . . Propulsion 5 | 2 2 1 Treads 1 | . 1 . Leg 1 | . 1 . Wheel 3 | 2 . 1 Hover . | . . . Flight . | . . . Utility 2 | 1 1 . Device 1 | . 1 . Storage 1 | 1 . . Processor . | . . . Hackware . | . . . Protection . | . . . Artifact . | . . . Weapon 8 | 2 4 2 Energy Gun 1 | . 1 . Energy Cannon . | . . . Ballistic Gun 6 | 2 2 2 Ballistic Cannon . | . . . Launcher 1 | . 1 . Special Weapon . | . . . Impact Weapon . | . . . Slashing Weapon . | . . . Piercing Weapon . | . . . Special Melee Weapon . | . . . Unidentified Prototypes . | . . . Parts Lost 7 | . 3 4 Power 1 | . 1 . Propulsion 4 | . 2 2 Utility . | . . . Weapon 2 | . . 2 Highest Loss Streak 4 | . 2 4 Average Slot Usage (%) 76 | . 77 71 Engine 4 | . 5 . Treads 1 | . 1 . Leg 7 | . 6 14 Wheel 10 | . 11 . Device 13 | . 13 14 Storage 14 | . 14 14 Energy Gun 5 | . 6 . Ballistic Gun 14 | . 15 14 Launcher 3 | . 1 14 Naked Turns . | . . . Heaviest Build 13 | 12 13 10 Greatest Support 26 | 26 26 10 Greatest Overweight (x) 2 | . 2 . Average Overweight (x) . | . . . Largest Inventory Capacity 6 | 6 6 6 Average Capacity 5 | 5 6 6 Most Carried 6 | 4 6 6 Average Carried 4 | 2 4 5 Final Capacity 6 | 6 6 6 Final Carried 6 | 4 6 4 Class Distribution -------------------- 100% | Mutant Dominant Class ---------------- Mutant | -10/Materials Mutant | -10/Mines Resources | -11 -10 -10 ----------- Run | Scr Mat Min Matter Collected 403 | 200 203 . Remotely . | . . . Salvage Created 286 | . 279 7 Parts 15 | . 15 . Haulers Intercepted . | . . . Recyclers Shooed 2 | . 2 . Parts Field Recycled . | . . . Retrieved Matter . | . . . Parts Self-Destructed . | . . . Prevented . | . . . Kills | -11 -10 -10 ------- Run | Scr Mat Min Combat Hostiles Destroyed 13 | . 7 6 Guns 8 | . 6 2 AOE 5 | . 1 4 Classes Destroyed 6 | . 5 1 Worker 1 | . 1 . Operator 1 | . 1 . Watcher 2 | . 2 . Swarmer 3 | . 3 . Grunt 4 | . 4 . Assembled 6 | . . 6 Best Kill Streak 6 | . 6 6 Combat Bots Only 6 | . 6 6 Max Kills in Single Turn 4 | . 1 4 Gunslinging . | . . . Exploded 3 | . 1 3 Melee . | . . . Uniques/NPCs Destroyed . | . . . Combat | -11 -10 -10 -------- Run | Scr Mat Min Damage Taken 1079 | . 606 473 Core 252 | . 158 94 Absorbed by Shields . | . . . Core Remaining (%) 100 | 100 . . Volleys Fired 42 | . 38 4 Largest 2 | . 2 2 Hottest 60 | . 60 50 Shots Fired 54 | . 47 7 Gun 51 | . 47 4 Cannon . | . . . Launcher 3 | . . 3 Special . | . . . Kinetic 43 | . 39 4 Thermal . | . . . Explosive 3 | . . 3 Electromagnetic 8 | . 8 . Robot Hit Streak 10 | . 10 2 Robot Miss Streak 3 | . 3 2 Penetration Max . | . . . Secondary Targets . | . . . Shots Hit Robots 38 | . 35 3 Core Hits 30 | . 17 13 Critical Hits . | . . . Critical Kills . | . . . Critical Parts Destroyed . | . . . Melee Attacks . | . . . Impact . | . . . Slashing . | . . . Piercing . | . . . Sneak Attacks . | . . . Combat Hostiles . | . . . Follow-up Attacks . | . . . Damage Inflicted 809 | . 587 222 Guns 488 | . 439 49 Cannons . | . . . Explosions 311 | . 138 173 Melee . | . . . Ramming 10 | . 10 . Kinetic 420 | . 371 49 Thermal 50 | . 50 . Explosive 173 | . . 173 Electromagnetic 156 | . 156 . Impact . | . . . Slashing . | . . . Piercing . | . . . Highest Corruption . | . . . Average Corruption . | . . . Corruption Purged . | . . . Overload Shots . | . . . Overflow Damage 5 | . 5 . Projectiles . | . . . Explosions 5 | . 5 . Melee . | . . . Knockbacks . | . . . Impact . | . . . Kinetic . | . . . Secondary . | . . . Self-Inflicted Damage 72 | . 72 . Shots 2 | . 2 . Rammed 3 | . 3 . Targets Rammed 3 | . 3 . Kicked . | . . . Crushed . | . . . Highest Temperature 33 | . 33 . Average Temperature 14 | . 14 . Received Heat Transfer 237 | . 237 . Siege Activations . | . . . Robots Corrupted . | . . . Combat Hostiles . | . . . Parts Fried 3 | . 3 . Impact Corruptions . | . . . Robots Melted . | . . . Combat Hostiles . | . . . Parts Melted . | . . . Heat Transferred 50 | . 50 . Parts Sabotaged . | . . . Parts Stolen . | . . . Parts Stripped . | . . . Power Chain Reactions 1 | . 1 . Missiles Intercepted . | . . . Alert | -11 -10 -10 ------- Run | Scr Mat Min Peak Influence 557 | . 557 173 Initial 158 | . . 158 Average 208 | . 251 159 Maximum Alert Level 2 | . 2 . Low Security (%) 67 | 100 56 100 Level 1 1 | . 1 . Level 2 31 | . 42 . Level 3 . | . . . Level 4 . | . . . Level 5 . | . . . High Security . | . . . Max Security . | . . . Squads Dispatched 1 | . 1 . Investigation . | . . . Extermination . | . . . Reinforcement 1 | . 1 . Assault . | . . . Garrison . | . . . Intercept . | . . . Construction Impeded . | . . . Haulers Reinforced . | . . . Stealth | -11 -10 -10 --------- Run | Scr Mat Min Distress Signals 2 | . 2 . Communications Jammed . | . . . Distress Signals . | . . . Times Spotted 35 | . 17 18 Peak Tracking Total 16 | . 5 16 Tactical Retreats 1 | . 1 . Traps | -11 -10 -10 ------- Run | Scr Mat Min Traps Triggered 1 | . 1 . Indirectly . | . . . Trap Hack Attempts . | . . . Triggered . | . . . Disarmed . | . . . Reprogrammed . | . . . Reused . | . . . Traps Extracted . | . . . Installed . | . . . Triggered . | . . . Machines | -11 -10 -10 ---------- Run | Scr Mat Min Machines Disabled 2 | . 2 . Max in Single Turn 2 | . 2 . Machines Sabotaged . | . . . Garrisons Compromised . | . . . Overloaded Fab Kills . | . . . Fab Network Shutdowns . | . . . Hacking | -11 -10 -10 --------- Run | Scr Mat Min Machines Accessed 3 | . 2 1 Terminals 2 | . 1 1 Fabricators . | . . . Repair Stations 1 | . 1 . Recycling Units . | . . . Scanalyzers . | . . . Garrison Access . | . . . Total Hacks 6 | . 5 1 Successful 5 | . 4 1 Failed 1 | . 1 . Catastrophic . | . . . Database Lockouts . | . . . Manual . | . . . Terminals 3 | . 2 1 Fabricators . | . . . Repair Stations 3 | . 3 . Recycling Units . | . . . Scanalyzers . | . . . Garrison Access . | . . . Terminal Hacks 2 | . 1 1 Record 1 | . 1 . Dispatch Records 1 | . . 1 Fabricator Hacks . | . . . Repair Station Hacks 3 | . 3 . Scan Component 2 | . 2 . Repair 1 | . 1 . Recycling Unit Hacks . | . . . Scanalyzer . | . . . Garrison Access Hacks . | . . . Unauthorized Hacks . | . . . Terminals . | . . . Fabricators . | . . . Repair Stations . | . . . Recycling Units . | . . . Scanalyzers . | . . . Garrison Access . | . . . Data Cores Recovered . | . . . Used . | . . . Hacking Detections 2 | . 2 . Full Trace Events 1 | . 1 . Feedback Events . | . . . Feedback Blocked . | . . . Robot Schematics Acquired . | . . . Robots Built . | . . . Matter . | . . . Time . | . . . Total Robot Build Rating . | . . . Part Schematics Acquired . | . . . Parts Built . | . . . Matter . | . . . Time . | . . . Total Part Build Rating . | . . . Parts Repaired 1 | . 1 . Time 26 | . 26 . Parts Recycled . | . . . Recycled Matter . | . . . Retrieved Matter . | . . . Retrieved Components . | . . . Parts Scanalyzed . | . . . Part Schematics Acquired . | . . . Parts Damaged . | . . . Bothacking | -11 -10 -10 ------------ Run | Scr Mat Min Used RIF Installer . | . . . Robots Hacked . | . . . Non-combat . | . . . Combat . | . . . Robot Hacks Applied . | . . . Relay Couplers Released . | . . . Robots Rewired . | . . . Allies Hacked . | . . . Hacks Repelled . | . . . Allies | -11 -10 -10 -------- Run | Scr Mat Min Total Allies . | . . . Largest Group . | . . . Highest-Rated Group . | . . . Highest-Rated Ally . | . . . Total Orders . | . . . Ally Attacks . | . . . Total Damage . | . . . Kills . | . . . Allies Corrupted . | . . . Allies Melted . | . . . Intel | -11 -10 -10 ------- Run | Scr Mat Min Robot Analysis Total . | . . . Derelict Logs Recovered . | . . . Drone Launches . | . . . Drone Recoveries . | . . . Exploration | -11 -10 -10 ------------- Run | Scr Mat Min Turns Passed 1185 | 150 891 144 Spaces Moved 993 | 183 701 109 Core 116 | 84 32 . Treads 39 | . 39 . Legs 456 | . 349 107 Wheels 382 | 99 281 2 Hover . | . . . Flight . | . . . Fastest Speed 50 | 50 90 80 Average Speed 105 | 71 111 119 Slowest Speed 160 | 100 160 120 Overloaded Moves . | . . . Propulsion Burnouts . | . . . Robots Hopped . | . . . Cave-ins Triggered . | . . . Exploration Rate (%) 30 | 6 54 30 Regions Visited 2 Branch Regions 1 Pre-discovered Areas . | . . . Known Exits Taken . | . . . Unknown Exits Taken 2 | 1 1 . Scrap Searched . | . . . Spaces Dug . | . . . Terrain Destroyed 20 | . 5 15 Melee . | . . . Projectile . | . . . AOE 20 | . 5 15 Terrain Rammed . | . . . Walls Destroyed . | . . . Machines Disabled . | . . . Actions | -11 -10 -10 --------- Run | Scr Mat Min Total 1080 | 202 762 116 Wait 5 | . 5 . Move 991 | 182 700 109 Hop . | . . . Pick Up 16 | 10 6 . Fast Attach 1 | . 1 . Attach 15 | 8 5 2 Detach 3 | 2 1 . Swap 3 | . 2 1 Drop 1 | . 1 . Fire 42 | . 38 4 Melee . | . . . Ram . | . . . Kick 3 | . 3 . Crush . | . . . Escape Stasis . | . . . Rewire . | . . . Trap . | . . . Miscellaneous . | . . . Route ------- -11/Scrapyard -10/Materials (discovered 3 exits: [*Mat] / *Min x2) -10/Mines (discovered 1 exit: [*Mat]) History --------- Turn | Location | Event 4 | -11/Scrapyard | Discovered new exit (range 15) 151 | -11/Scrapyard | Entered Materials 215 | -10/Materials | Discovered new exit (range 15) 241 | -10/Materials | Met 8R-AWN 288 | -10/Materials | Discovered new exit (range 15) 304 | -10/Materials | Build established: Mutant 376 | -10/Materials | Discovered new exit (range 7) 427 | -10/Materials | Repaired Ion Engine? 541 | -10/Materials | Core integrity fell below 50% 1042 | -10/Materials | Entered Mines 1044 | -10/Mines | Followed 8R-AWN into the Mines 1049 | -10/Mines | Received a Rocket Launcher from a helpful Derelict 1159 | -10/Mines | Assembled infested the area 1179 | -10/Mines | Discovered new exit (range 11) 1180 | -10/Mines | Core integrity fell below 20% 1186 | -10/Mines | Destroyed by D-53 Grenadier with Mini Grenade Launcher Last Messages --------------- 01170_ as-85119 destroyed. 01171_ as-11957 destroyed. 01171_ as-94821 destroyed. 01171_ as-12018 destroyed. 01173_ as-49880 destroyed. 01173_ as-59680 destroyed. 01174_ as-51086 destroyed. 01175_ as-83092 destroyed. 01176_ as-34504 destroyed. 01177_ The unstable cave ceiling collapses. 01179_ EXIT=FOUND 01181_ The unstable cave ceiling collapses. 01182_ Aluminum Leg destroyed. 01183_ The unstable cave ceiling collapses. 01183_ Grenade Launcher destroyed. 01183_ U-05 Engineer destroyed. 01184_ Assault Rifle destroyed. 01185_ The unstable cave ceiling collapses. 01185_ Wheel destroyed. 01186_ The unstable cave ceiling collapses. Map ----- +----------------------------------------------------+ | | | | | | | | | | | | | | | | | | | ??????????????????#?????????????????????????????? | | ????????####?????????????????#??????????????????? | | ???????## ##????????#??????????????????????????? | | ####??## ##??????????????????????????????????? | | ##??# ##??????????##?????????????????????? | | #### #????#????????????????????????????? | | ## #???????????????#?#???????????????? | | #???????#?????? ??????????????????? | | #####?????##### ??????????????????? | | ### #???### $ ?#######???????????? | | ##?## #### #??## ## ##??????????? | | #???#####??# #?## ## ## ????????? | | #?#????????# #?# ???????? | | #???????#??# ### ???????? | | #???????#??# d ???????? | | ##??????#???##### d % ???????? | | ####???????????????# @ # ???????? | | ###???????????????# ???????? | | ########??????# ???????? | | #??? * = < #????????? | | ####### #??# = # # #????????? | | #?????????#?### ## ##?##?? ?????????? | | #???#?????????#### ##?# #????????????????? | | #????????????????## #???? #????????????????? | | #?????????????????##